[Event "Titled Tuesday Blitz August 08 Late 2023"]
[White "Urazayev, Arystanbek"]
[Black "Grossboss19"]
[WhiteFideId "13709810"]
[WhiteElo "2748"]
[BlackElo "2528"]
[Result "1-0"]
[Round "4"]
[TimeControl "180+1"]
[Date "2023.08.08"]
[WhiteClock "0:00:10"]
[BlackClock "0:00:00"]
[Board "52"]

1. d4 {[%clk 0:03:00]}  Nf6 {[%clk 0:02:58]} 2. c4 {[%clk 0:03:01]}  e6 {[%clk 0:02:58]} 3. Nc3 {[%clk 0:03:01]}  d5 {[%clk 0:02:56]} 4. Nf3 {[%clk 0:03:01]}  c6 {[%clk 0:02:56]} 5. e3 {[%clk 0:02:59]}  Nbd7 {[%clk 0:02:55]} 6. Qc2 {[%clk 0:03:00]}  Bd6 {[%clk 0:02:54]} 7. b3 {[%clk 0:03:00]}  O-O {[%clk 0:02:54]} 8. Be2 {[%clk 0:03:01]}  Qe7 {[%clk 0:02:52]} 9. Bb2 {[%clk 0:03:01]}  e5 {[%clk 0:02:47]} 10. dxe5 {[%clk 0:02:53]}  Nxe5 {[%clk 0:02:46]} 11. Nxe5 {[%clk 0:02:54]}  Bxe5 {[%clk 0:02:46]} 12. cxd5 {[%clk 0:02:53]}  cxd5 {[%clk 0:02:45]} 13. O-O {[%clk 0:02:50]}  d4 {[%clk 0:02:26]} 14. exd4 {[%clk 0:02:42]}  Bxd4 {[%clk 0:02:26]} 15. Rad1 {[%clk 0:02:36]}  Be5 {[%clk 0:01:52]} 16. Rfe1 {[%clk 0:02:34]}  Qc7 {[%clk 0:01:52]} 17. h3 {[%clk 0:02:15]}  Be6 {[%clk 0:01:39]} 18. Qd2 {[%clk 0:02:10]}  Rfd8 {[%clk 0:01:32]} 19. Qe3 {[%clk 0:02:10]}  a6 {[%clk 0:01:08]} 20. Bf3 {[%clk 0:01:58]}  Rxd1 {[%clk 0:01:08]} 21. Rxd1 {[%clk 0:01:48]}  Rc8 {[%clk 0:01:04]} 22. Na4 {[%clk 0:01:48]}  Bxb2 {[%clk 0:01:02]} 23. Nxb2 {[%clk 0:01:48]}  h6 {[%clk 0:00:57]} 24. Nd3 {[%clk 0:01:42]}  Rd8 {[%clk 0:00:54]} 25. Rc1 {[%clk 0:01:32]}  Qb8 {[%clk 0:00:41]} 26. Nc5 {[%clk 0:01:31]}  Bd5 {[%clk 0:00:41]} 27. Rd1 {[%clk 0:01:22]}  Bxf3 {[%clk 0:00:36]} 28. Rxd8+ {[%clk 0:01:22]}  Qxd8 {[%clk 0:00:35]} 29. Qxf3 {[%clk 0:01:22]}  b6 {[%clk 0:00:20]} 30. Nxa6 {[%clk 0:01:20]}  Qd4 {[%clk 0:00:16]} 31. Qe2 {[%clk 0:01:00]}  Ne4 {[%clk 0:00:13]} 32. b4 {[%clk 0:00:49]}  Qa1+ {[%clk 0:00:10]} 33. Kh2 {[%clk 0:00:49]}  Qe5+ {[%clk 0:00:10]} 34. g3 {[%clk 0:00:48]}  Qd4 {[%clk 0:00:10]} 35. Kg2 {[%clk 0:00:48]}  Nc3 {[%clk 0:00:05]} 36. Qe8+ {[%clk 0:00:46]}  Kh7 {[%clk 0:00:06]} 37. Qxf7 {[%clk 0:00:45]}  Qd3 {[%clk 0:00:04]} 38. Nc7 {[%clk 0:00:39]}  Qe4+ {[%clk 0:00:04]} 39. Qf3 {[%clk 0:00:40]}  Qxb4 {[%clk 0:00:04]} 40. Nd5 {[%clk 0:00:39]}  Nxd5 {[%clk 0:00:03]} 41. Qxd5 {[%clk 0:00:40]}  Qa3 {[%clk 0:00:01]} 42. h4 {[%clk 0:00:38]}  Kh8 {[%clk 0:00:02]} 43. Qb3 {[%clk 0:00:36]}  Qa5 {[%clk 0:00:02]} 44. Kf3 {[%clk 0:00:36]}  Qa8+ {[%clk 0:00:02]} 45. Ke3 {[%clk 0:00:34]}  Qe8+ {[%clk 0:00:02]} 46. Kd3 {[%clk 0:00:34]}  Qd7+ {[%clk 0:00:03]} 47. Kc3 {[%clk 0:00:33]}  Qc6+ {[%clk 0:00:03]} 48. Kb2 {[%clk 0:00:30]}  Qf6+ {[%clk 0:00:03]} 49. Qc3 {[%clk 0:00:30]}  Qxf2+ {[%clk 0:00:03]} 50. Kb3 {[%clk 0:00:31]}  Qf7+ {[%clk 0:00:03]} 51. Kb4 {[%clk 0:00:31]}  Qb7 {[%clk 0:00:01]} 52. a4 {[%clk 0:00:30]}  Qa6 {[%clk 0:00:02]} 53. Qe5 {[%clk 0:00:28]}  Kh7 {[%clk 0:00:02]} 54. h5 {[%clk 0:00:27]}  Qa7 {[%clk 0:00:02]} 55. g4 {[%clk 0:00:22]}  Kh8 {[%clk 0:00:02]} 56. g5 {[%clk 0:00:22]}  hxg5 {[%clk 0:00:03]} 57. h6 {[%clk 0:00:22]}  Kh7 {[%clk 0:00:03]} 58. hxg7 {[%clk 0:00:07]}  Qxg7 {[%clk 0:00:04]} 59. Qe4+ {[%clk 0:00:06]}  Qg6 {[%clk 0:00:04]} 60. Qe7+ {[%clk 0:00:06]}  Kh6 {[%clk 0:00:04]} 61. Qf8+ {[%clk 0:00:05]}  Kh5 {[%clk 0:00:05]} 62. Qh8+ {[%clk 0:00:05]}  Kg4 {[%clk 0:00:05]} 63. Kb5 {[%clk 0:00:05]}  Kf3 {[%clk 0:00:03]} 64. Qh1+ {[%clk 0:00:05]}  Kf4 {[%clk 0:00:03]} 65. Qf1+ {[%clk 0:00:05]}  Kg4 {[%clk 0:00:03]} 66. Qg1+ {[%clk 0:00:05]}  Kf4 {[%clk 0:00:03]} 67. Qf2+ {[%clk 0:00:04]}  Kg4 {[%clk 0:00:03]} 68. Qxb6 {[%clk 0:00:04]}  Qb1+ {[%clk 0:00:02]} 69. Kc6 {[%clk 0:00:03]}  Qxb6+ {[%clk 0:00:02]} 70. Kxb6 {[%clk 0:00:03]}  Kf3 {[%clk 0:00:03]} 71. a5 {[%clk 0:00:04]}  g4 {[%clk 0:00:03]} 72. a6 {[%clk 0:00:05]}  g3 {[%clk 0:00:01]} 73. a7 {[%clk 0:00:06]}  g2 {[%clk 0:00:01]} 74. a8=Q+ {[%clk 0:00:06]}  Kf2 {[%clk 0:00:01]} 75. Qf8+ {[%clk 0:00:07]}  Kg3 {[%clk 0:00:02]} 76. Qg7+ {[%clk 0:00:07]}  Kh2 {[%clk 0:00:02]} 77. Qh6+ {[%clk 0:00:07]}  Kg3 {[%clk 0:00:03]} 78. Qg5+ {[%clk 0:00:08]}  Kh2 {[%clk 0:00:03]} 79. Qh4+ {[%clk 0:00:08]}  Kg1 {[%clk 0:00:03]} 80. Kc5 {[%clk 0:00:08]}  Kf1 {[%clk 0:00:04]} 81. Qf4+ {[%clk 0:00:09]}  Ke2 {[%clk 0:00:03]} 82. Qg3 {[%clk 0:00:09]}  Kf1 {[%clk 0:00:03]} 83. Qf3+ {[%clk 0:00:09]}  Kg1 {[%clk 0:00:04]} 84. Kd4 {[%clk 0:00:10]}  Kh2 {[%clk 0:00:04]} 85. Qh5+ {[%clk 0:00:10]}  Kg3 {[%clk 0:00:04]} 86. Qg5+ {[%clk 0:00:10]}  Kf2 {[%clk 0:00:04]} 87. Qf4+ {[%clk 0:00:09]}  Ke2 {[%clk 0:00:04]} 88. Qg3 {[%clk 0:00:09]}  Kf1 {[%clk 0:00:04]} 89. Qf3+ {[%clk 0:00:10]}  Kg1 {[%clk 0:00:05]} 90. Ke3 {[%clk 0:00:10]}  Kh2 {[%clk 0:00:05]} 91. Qh5+ {[%clk 0:00:11]}  Kg1 {[%clk 0:00:05]} 92. Kf3 {[%clk 0:00:10]}  Kf1 {[%clk 0:00:05]} 93. Qb5+ {[%clk 0:00:10]}  Kg1 {[%clk 0:00:00]} 94. Qb2 {[%clk 0:00:10]} 1-0


[Site "https://www.chess.com"]

[Event "Titled Tuesday Blitz August 08 Late 2023"]
[White "Do Valle Cardoso, Lucas"]
[Black "Hnydiuk, Aleksander"]
[WhiteFideId "2163144"]
[BlackFideId "1109057"]
[WhiteElo "2735"]
[BlackElo "2523"]
[Result "0-1"]
[Round "4"]
[TimeControl "180+1"]
[Date "2023.08.08"]
[WhiteClock "0:00:00"]
[BlackClock "0:00:07"]
[Board "54"]

1. e4 {[%clk 0:03:00]}  e5 {[%clk 0:02:59]} 2. Nf3 {[%clk 0:02:58]}  Nc6 {[%clk 0:02:59]} 3. d4 {[%clk 0:02:57]}  exd4 {[%clk 0:02:58]} 4. Bc4 {[%clk 0:02:58]}  Nf6 {[%clk 0:02:57]} 5. e5 {[%clk 0:02:58]}  d5 {[%clk 0:02:56]} 6. Bb5 {[%clk 0:02:58]}  Ne4 {[%clk 0:02:56]} 7. Nxd4 {[%clk 0:02:58]}  Bd7 {[%clk 0:02:56]} 8. Bxc6 {[%clk 0:02:57]}  bxc6 {[%clk 0:02:57]} 9. O-O {[%clk 0:02:57]}  Be7 {[%clk 0:02:52]} 10. f3 {[%clk 0:02:56]}  Nc5 {[%clk 0:02:52]} 11. f4 {[%clk 0:02:56]}  Ne4 {[%clk 0:02:47]} 12. Nc3 {[%clk 0:02:51]}  c5 {[%clk 0:02:27]} 13. Nde2 {[%clk 0:02:25]}  Nxc3 {[%clk 0:02:22]} 14. bxc3 {[%clk 0:02:18]}  O-O {[%clk 0:01:16]} 15. Qxd5 {[%clk 0:02:05]}  Bf5 {[%clk 0:01:16]} 16. Qb3 {[%clk 0:01:28]}  Rb8 {[%clk 0:01:10]} 17. Qa4 {[%clk 0:01:28]}  Qd5 {[%clk 0:01:05]} 18. Ng3 {[%clk 0:01:23]}  Bd7 {[%clk 0:01:04]} 19. Qe4 {[%clk 0:01:12]}  Qxe4 {[%clk 0:00:59]} 20. Nxe4 {[%clk 0:01:13]}  Bf5 {[%clk 0:00:54]} 21. Re1 {[%clk 0:01:13]}  c4 {[%clk 0:00:52]} 22. a4 {[%clk 0:01:01]}  Rfd8 {[%clk 0:00:47]} 23. Kf2 {[%clk 0:00:50]}  h5 {[%clk 0:00:32]} 24. h3 {[%clk 0:00:44]}  Bh4+ {[%clk 0:00:26]} 25. g3 {[%clk 0:00:40]}  Be7 {[%clk 0:00:27]} 26. Kg2 {[%clk 0:00:34]}  a6 {[%clk 0:00:13]} 27. Nd2 {[%clk 0:00:03]}  Bxc2 {[%clk 0:00:11]} 28. Nxc4 {[%clk 0:00:04]}  Bb3 {[%clk 0:00:09]} 29. Ne3 {[%clk 0:00:02]}  Rd3 {[%clk 0:00:07]} 30. Bb2 {[%clk 0:00:02]}  Be6 {[%clk 0:00:07]} 31. Rab1 {[%clk 0:00:00]}  Rd2+ {[%clk 0:00:07]} 0-1


[Site "https://www.chess.com"]

[Event "Titled Tuesday Blitz August 08 Late 2023"]
[White "FromTexas54"]
[Black "Jimenez Martinez, Jose Vicente"]
[BlackFideId "2264021"]
[WhiteElo "2521"]
[BlackElo "2721"]
[Result "0-1"]
[Round "4"]
[TimeControl "180+1"]
[Date "2023.08.08"]
[WhiteClock "0:00:01"]
[BlackClock "0:02:29"]
[Board "57"]

1. d4 {[%clk 0:02:59]}  d6 {[%clk 0:03:00]} 2. Nf3 {[%clk 0:02:59]}  g6 {[%clk 0:03:01]} 3. c4 {[%clk 0:02:57]}  Bg7 {[%clk 0:03:01]} 4. Nc3 {[%clk 0:02:58]}  Nf6 {[%clk 0:03:02]} 5. e4 {[%clk 0:02:59]}  O-O {[%clk 0:03:02]} 6. Be2 {[%clk 0:03:00]}  Bg4 {[%clk 0:03:02]} 7. O-O {[%clk 0:03:01]}  Nfd7 {[%clk 0:03:00]} 8. Be3 {[%clk 0:02:58]}  e5 {[%clk 0:02:59]} 9. d5 {[%clk 0:02:55]}  a5 {[%clk 0:02:59]} 10. Ne1 {[%clk 0:02:55]}  Bxe2 {[%clk 0:02:58]} 11. Qxe2 {[%clk 0:02:56]}  f5 {[%clk 0:02:58]} 12. f3 {[%clk 0:02:56]}  Na6 {[%clk 0:02:58]} 13. a3 {[%clk 0:02:54]}  Nac5 {[%clk 0:02:55]} 14. b4 {[%clk 0:02:53]}  Nb3 {[%clk 0:02:53]} 15. Rb1 {[%clk 0:02:50]}  Nd4 {[%clk 0:02:53]} 16. Qd2 {[%clk 0:02:50]}  axb4 {[%clk 0:02:43]} 17. axb4 {[%clk 0:02:49]}  Nb6 {[%clk 0:02:44]} 18. Qd3 {[%clk 0:02:05]}  Ra3 {[%clk 0:02:40]} 19. Nc2 {[%clk 0:02:05]}  Nxc2 {[%clk 0:02:36]} 20. Bxb6 {[%clk 0:00:01]}  Nd4 {[%clk 0:02:29]} 0-1


[Site "https://www.chess.com"]

[Event "Titled Tuesday Blitz August 08 Late 2023"]
[White "Korchmar, Vasiliy"]
[Black "Domingo Nunez, Alejandro"]
[WhiteFideId "24131750"]
[BlackFideId "22245561"]
[WhiteElo "2718"]
[BlackElo "2518"]
[Result "1-0"]
[Round "4"]
[TimeControl "180+1"]
[Date "2023.08.08"]
[WhiteClock "0:01:29"]
[BlackClock "0:00:02"]
[Board "60"]

1. e4 {[%clk 0:03:00]}  g6 {[%clk 0:03:00]} 2. d4 {[%clk 0:02:59]}  Bg7 {[%clk 0:03:00]} 3. c3 {[%clk 0:02:59]}  c6 {[%clk 0:03:01]} 4. Bd3 {[%clk 0:02:59]}  d5 {[%clk 0:03:02]} 5. e5 {[%clk 0:02:58]}  f6 {[%clk 0:03:02]} 6. exf6 {[%clk 0:02:50]}  Nxf6 {[%clk 0:03:02]} 7. Nf3 {[%clk 0:02:48]}  Bg4 {[%clk 0:02:51]} 8. h3 {[%clk 0:02:47]}  Bxf3 {[%clk 0:02:51]} 9. Qxf3 {[%clk 0:02:48]}  O-O {[%clk 0:02:52]} 10. Qe2 {[%clk 0:02:47]}  Qd6 {[%clk 0:02:50]} 11. O-O {[%clk 0:02:45]}  Nbd7 {[%clk 0:02:49]} 12. b3 {[%clk 0:02:39]}  Rae8 {[%clk 0:02:42]} 13. Ba3 {[%clk 0:02:38]}  Qf4 {[%clk 0:02:40]} 14. Nd2 {[%clk 0:02:35]}  Rf7 {[%clk 0:02:30]} 15. Nf3 {[%clk 0:02:33]}  e5 {[%clk 0:02:29]} 16. Bc1 {[%clk 0:02:19]}  Nh5 {[%clk 0:02:08]} 17. Bxf4 {[%clk 0:02:17]}  Nxf4 {[%clk 0:02:09]} 18. Qd2 {[%clk 0:02:09]}  e4 {[%clk 0:01:51]} 19. Ng5 {[%clk 0:02:08]}  Rf5 {[%clk 0:01:43]} 20. Nxe4 {[%clk 0:01:59]}  dxe4 {[%clk 0:01:43]} 21. Bc4+ {[%clk 0:01:58]}  Kh8 {[%clk 0:01:34]} 22. Rae1 {[%clk 0:01:59]}  Bh6 {[%clk 0:01:34]} 23. Qc2 {[%clk 0:01:58]}  Nf6 {[%clk 0:01:33]} 24. Kh2 {[%clk 0:01:52]}  Rh5 {[%clk 0:01:26]} 25. Be2 {[%clk 0:01:51]}  Rg5 {[%clk 0:01:24]} 26. g3 {[%clk 0:01:44]}  N4d5 {[%clk 0:01:15]} 27. c4 {[%clk 0:01:40]}  Nb4 {[%clk 0:00:58]} 28. Qd2 {[%clk 0:01:40]}  a5 {[%clk 0:00:56]} 29. f4 {[%clk 0:01:39]}  exf3 {[%clk 0:00:15]} 30. Bxf3 {[%clk 0:01:38]}  Rge5 {[%clk 0:00:16]} 31. Qxh6 {[%clk 0:01:25]}  Rxe1 {[%clk 0:00:16]} 32. Rxe1 {[%clk 0:01:26]}  Rxe1 {[%clk 0:00:16]} 33. Qf8+ {[%clk 0:01:27]}  Ng8 {[%clk 0:00:17]} 34. Bg4 {[%clk 0:01:27]}  Nxa2 {[%clk 0:00:07]} 35. d5 {[%clk 0:01:27]}  cxd5 {[%clk 0:00:04]} 36. cxd5 {[%clk 0:01:28]}  Nc3 {[%clk 0:00:04]} 37. Be6 {[%clk 0:01:28]}  Re2+ {[%clk 0:00:02]} 38. Kg1 {[%clk 0:01:29]} 1-0


[Site "https://www.chess.com"]

[Event "Titled Tuesday Blitz August 08 Late 2023"]
[White "Alex_Sahakyan2006"]
[Black "Geivondian, Arman"]
[BlackFideId "24102032"]
[WhiteElo "2716"]
[BlackElo "2514"]
[Result "1-0"]
[Round "4"]
[TimeControl "180+1"]
[Date "2023.08.08"]
[WhiteClock "0:00:12"]
[BlackClock "0:00:12"]
[Board "62"]

1. e4 {[%clk 0:03:00]}  c6 {[%clk 0:03:00]} 2. Nf3 {[%clk 0:02:57]}  d5 {[%clk 0:03:01]} 3. exd5 {[%clk 0:02:58]}  cxd5 {[%clk 0:03:01]} 4. Ne5 {[%clk 0:02:59]}  Nc6 {[%clk 0:03:00]} 5. Bb5 {[%clk 0:02:58]}  Bd7 {[%clk 0:03:00]} 6. Nxd7 {[%clk 0:02:58]}  Qxd7 {[%clk 0:03:00]} 7. d4 {[%clk 0:02:58]}  e6 {[%clk 0:02:57]} 8. c3 {[%clk 0:02:57]}  Bd6 {[%clk 0:02:57]} 9. O-O {[%clk 0:02:56]}  a6 {[%clk 0:02:57]} 10. Bd3 {[%clk 0:02:56]}  Nge7 {[%clk 0:02:57]} 11. Nd2 {[%clk 0:02:56]}  O-O {[%clk 0:02:57]} 12. Re1 {[%clk 0:02:57]}  Rfe8 {[%clk 0:02:57]} 13. Nf3 {[%clk 0:02:57]}  Ng6 {[%clk 0:02:58]} 14. g3 {[%clk 0:02:49]}  f6 {[%clk 0:02:57]} 15. h4 {[%clk 0:02:46]}  Re7 {[%clk 0:02:54]} 16. h5 {[%clk 0:02:43]}  Nf8 {[%clk 0:02:53]} 17. Bc2 {[%clk 0:02:15]}  Rd8 {[%clk 0:02:52]} 18. Kg2 {[%clk 0:02:13]}  Qe8 {[%clk 0:02:51]} 19. Nh4 {[%clk 0:02:07]}  b5 {[%clk 0:02:50]} 20. a3 {[%clk 0:02:07]}  Bb8 {[%clk 0:02:35]} 21. Qg4 {[%clk 0:02:03]}  Kh8 {[%clk 0:02:22]} 22. Qf3 {[%clk 0:01:43]}  Qf7 {[%clk 0:02:08]} 23. Ng6+ {[%clk 0:01:32]}  Nxg6 {[%clk 0:01:35]} 24. hxg6 {[%clk 0:01:33]}  hxg6 {[%clk 0:01:36]} 25. Rh1+ {[%clk 0:01:31]}  Kg8 {[%clk 0:01:36]} 26. Qg4 {[%clk 0:01:31]}  f5 {[%clk 0:01:35]} 27. Qh4 {[%clk 0:01:30]}  Qf8 {[%clk 0:01:33]} 28. Bg5 {[%clk 0:01:26]}  Kf7 {[%clk 0:01:33]} 29. Rae1 {[%clk 0:01:21]}  Na5 {[%clk 0:01:27]} 30. g4 {[%clk 0:01:06]}  Rde8 {[%clk 0:01:15]} 31. gxf5 {[%clk 0:00:58]}  exf5 {[%clk 0:01:07]} 32. Bxf5 {[%clk 0:00:20]}  gxf5 {[%clk 0:00:48]} 33. Qh5+ {[%clk 0:00:20]}  Kg8 {[%clk 0:00:49]} 34. Qh7+ {[%clk 0:00:20]}  Kf7 {[%clk 0:00:49]} 35. Qxf5+ {[%clk 0:00:20]}  Kg8 {[%clk 0:00:49]} 36. Qxf8+ {[%clk 0:00:18]}  Kxf8 {[%clk 0:00:43]} 37. Bxe7+ {[%clk 0:00:18]}  Kf7 {[%clk 0:00:33]} 38. Bg5 {[%clk 0:00:18]}  Rc8 {[%clk 0:00:23]} 39. f4 {[%clk 0:00:14]}  Bd6 {[%clk 0:00:20]} 40. Kf3 {[%clk 0:00:14]}  Nc4 {[%clk 0:00:20]} 41. Re2 {[%clk 0:00:14]}  a5 {[%clk 0:00:18]} 42. Kg4 {[%clk 0:00:14]}  b4 {[%clk 0:00:17]} 43. axb4 {[%clk 0:00:14]}  axb4 {[%clk 0:00:17]} 44. Ra1 {[%clk 0:00:15]}  Rc7 {[%clk 0:00:17]} 45. f5 {[%clk 0:00:14]}  Rb7 {[%clk 0:00:15]} 46. Ra6 {[%clk 0:00:13]}  bxc3 {[%clk 0:00:15]} 47. bxc3 {[%clk 0:00:13]}  Bf8 {[%clk 0:00:16]} 48. Rae6 {[%clk 0:00:12]}  Nd6 {[%clk 0:00:16]} 49. Bf4 {[%clk 0:00:11]}  Ne4 {[%clk 0:00:16]} 50. R6xe4 {[%clk 0:00:11]}  dxe4 {[%clk 0:00:16]} 51. Rxe4 {[%clk 0:00:12]}  Rb3 {[%clk 0:00:15]} 52. c4 {[%clk 0:00:12]}  Rb1 {[%clk 0:00:11]} 53. c5 {[%clk 0:00:11]}  Rg1+ {[%clk 0:00:11]} 54. Kf3 {[%clk 0:00:11]}  Be7 {[%clk 0:00:11]} 55. Be5 {[%clk 0:00:11]}  Rf1+ {[%clk 0:00:11]} 56. Kg4 {[%clk 0:00:10]}  Rg1+ {[%clk 0:00:12]} 57. Kf3 {[%clk 0:00:10]}  Rf1+ {[%clk 0:00:12]} 58. Kg4 {[%clk 0:00:08]}  Rg1+ {[%clk 0:00:12]} 59. Bg3 {[%clk 0:00:09]}  Bf6 {[%clk 0:00:12]} 60. c6 {[%clk 0:00:10]}  Rc1 {[%clk 0:00:12]} 61. c7 {[%clk 0:00:10]}  Rc4 {[%clk 0:00:09]} 62. Kf3 {[%clk 0:00:09]}  Bxd4 {[%clk 0:00:09]} 63. Rxd4 {[%clk 0:00:09]}  Rxd4 {[%clk 0:00:09]} 64. c8=Q {[%clk 0:00:09]}  Rd5 {[%clk 0:00:09]} 65. Qe6+ {[%clk 0:00:09]}  Kf8 {[%clk 0:00:09]} 66. Qxd5 {[%clk 0:00:10]}  g5 {[%clk 0:00:10]} 67. f6 {[%clk 0:00:10]}  g4+ {[%clk 0:00:09]} 68. Kxg4 {[%clk 0:00:10]}  Ke8 {[%clk 0:00:10]} 69. Qe6+ {[%clk 0:00:11]}  Kf8 {[%clk 0:00:11]} 70. Qe7+ {[%clk 0:00:11]}  Kg8 {[%clk 0:00:12]} 71. Qg7# {[%clk 0:00:12]} 1-0


[Site "https://www.chess.com"]

[Event "Titled Tuesday Blitz August 08 Late 2023"]
[White "Chor, Kevin"]
[Black "Skvortsov, Andrei"]
[WhiteFideId "2090740"]
[BlackFideId "24108600"]
[WhiteElo "2511"]
[BlackElo "2710"]
[Result "1-0"]
[Round "4"]
[TimeControl "180+1"]
[Date "2023.08.08"]
[WhiteClock "0:00:10"]
[BlackClock "0:01:48"]
[Board "63"]

1. e4 {[%clk 0:03:00]}  d5 {[%clk 0:03:00]} 2. exd5 {[%clk 0:03:00]}  Qxd5 {[%clk 0:03:01]} 3. Nc3 {[%clk 0:03:00]}  Qe5+ {[%clk 0:03:01]} 4. Be2 {[%clk 0:02:40]}  Bg4 {[%clk 0:03:01]} 5. d4 {[%clk 0:02:41]}  Bxe2 {[%clk 0:03:01]} 6. Ngxe2 {[%clk 0:02:41]}  Qa5 {[%clk 0:03:01]} 7. O-O {[%clk 0:02:40]}  Nf6 {[%clk 0:03:02]} 8. b4 {[%clk 0:02:32]}  Qxb4 {[%clk 0:03:00]} 9. Rb1 {[%clk 0:02:31]}  Qc4 {[%clk 0:02:59]} 10. Rxb7 {[%clk 0:02:27]}  e6 {[%clk 0:02:57]} 11. Bf4 {[%clk 0:02:19]}  Na6 {[%clk 0:02:56]} 12. Qb1 {[%clk 0:01:39]}  Bb4 {[%clk 0:02:56]} 13. Qb3 {[%clk 0:01:22]}  Qxb3 {[%clk 0:02:56]} 14. cxb3 {[%clk 0:01:19]}  Kd7 {[%clk 0:02:51]} 15. Rc1 {[%clk 0:01:01]}  Rhb8 {[%clk 0:02:44]} 16. Rxb8 {[%clk 0:00:56]}  Rxb8 {[%clk 0:02:45]} 17. Na4 {[%clk 0:00:53]}  Rb5 {[%clk 0:02:43]} 18. Nec3 {[%clk 0:00:49]}  Ra5 {[%clk 0:02:39]} 19. Be5 {[%clk 0:00:48]}  Ne8 {[%clk 0:02:33]} 20. Ne4 {[%clk 0:00:44]}  f6 {[%clk 0:02:33]} 21. Bg3 {[%clk 0:00:44]}  Rd5 {[%clk 0:02:31]} 22. Rd1 {[%clk 0:00:36]}  Nd6 {[%clk 0:02:27]} 23. f3 {[%clk 0:00:30]}  Nf5 {[%clk 0:02:25]} 24. Bf2 {[%clk 0:00:30]}  e5 {[%clk 0:02:26]} 25. Nac3 {[%clk 0:00:23]}  Bxc3 {[%clk 0:02:26]} 26. Nxc3 {[%clk 0:00:23]}  Rd6 {[%clk 0:02:24]} 27. Nb5 {[%clk 0:00:22]}  Rd5 {[%clk 0:02:24]} 28. Nc3 {[%clk 0:00:22]}  Rxd4 {[%clk 0:02:19]} 29. Bxd4 {[%clk 0:00:21]}  exd4 {[%clk 0:02:19]} 30. g4 {[%clk 0:00:19]}  Kc6 {[%clk 0:02:11]} 31. gxf5 {[%clk 0:00:19]}  dxc3 {[%clk 0:02:10]} 32. Rc1 {[%clk 0:00:20]}  Nb4 {[%clk 0:02:09]} 33. Rxc3+ {[%clk 0:00:20]}  Kd6 {[%clk 0:02:08]} 34. a3 {[%clk 0:00:20]}  Nd5 {[%clk 0:02:08]} 35. Rd3 {[%clk 0:00:20]}  Ke5 {[%clk 0:02:09]} 36. Kf2 {[%clk 0:00:20]}  c6 {[%clk 0:02:09]} 37. b4 {[%clk 0:00:19]}  a6 {[%clk 0:02:08]} 38. Rb3 {[%clk 0:00:19]}  Kxf5 {[%clk 0:02:08]} 39. Rb1 {[%clk 0:00:17]}  Ke5 {[%clk 0:02:05]} 40. Rc1 {[%clk 0:00:17]}  Kd6 {[%clk 0:02:05]} 41. Ke2 {[%clk 0:00:17]}  Nf4+ {[%clk 0:02:05]} 42. Ke3 {[%clk 0:00:17]}  Ne6 {[%clk 0:02:05]} 43. Rd1+ {[%clk 0:00:17]}  Kc7 {[%clk 0:02:04]} 44. Ke4 {[%clk 0:00:17]}  g6 {[%clk 0:02:04]} 45. f4 {[%clk 0:00:16]}  Ng7 {[%clk 0:02:04]} 46. Kd4 {[%clk 0:00:15]}  Ne6+ {[%clk 0:02:04]} 47. Ke4 {[%clk 0:00:16]}  Ng7 {[%clk 0:02:04]} 48. a4 {[%clk 0:00:16]}  Nf5 {[%clk 0:02:04]} 49. Rc1 {[%clk 0:00:16]}  Kd6 {[%clk 0:02:02]} 50. Rc5 {[%clk 0:00:16]}  Kc7 {[%clk 0:02:01]} 51. Rxf5 {[%clk 0:00:12]}  gxf5+ {[%clk 0:02:00]} 52. Kxf5 {[%clk 0:00:13]}  Kd6 {[%clk 0:01:56]} 53. Kxf6 {[%clk 0:00:13]}  a5 {[%clk 0:01:56]} 54. bxa5 {[%clk 0:00:11]}  c5 {[%clk 0:01:54]} 55. a6 {[%clk 0:00:09]}  Kc6 {[%clk 0:01:51]} 56. Ke5 {[%clk 0:00:09]}  Kb6 {[%clk 0:01:51]} 57. f5 {[%clk 0:00:10]}  c4 {[%clk 0:01:48]} 58. Kd4 {[%clk 0:00:10]} 1-0


[Site "https://www.chess.com"]

[Event "Titled Tuesday Blitz August 08 Late 2023"]
[White "chess123456s"]
[Black "Yi, Richard"]
[BlackFideId "2079518"]
[WhiteElo "2511"]
[BlackElo "2710"]
[Result "1-0"]
[Round "4"]
[TimeControl "180+1"]
[Date "2023.08.08"]
[WhiteClock "0:00:24"]
[BlackClock "0:00:00"]
[Board "64"]

1. Nf3 {[%clk 0:03:00]}  Nf6 {[%clk 0:02:58]} 2. e3 {[%clk 0:03:01]}  g6 {[%clk 0:02:54]} 3. b3 {[%clk 0:03:00]}  Bg7 {[%clk 0:02:54]} 4. Bb2 {[%clk 0:03:00]}  O-O {[%clk 0:02:55]} 5. c4 {[%clk 0:03:00]}  c6 {[%clk 0:02:52]} 6. Be2 {[%clk 0:03:01]}  d5 {[%clk 0:02:52]} 7. O-O {[%clk 0:03:01]}  Bf5 {[%clk 0:02:44]} 8. d4 {[%clk 0:02:59]}  Nbd7 {[%clk 0:02:32]} 9. Nbd2 {[%clk 0:02:58]}  a5 {[%clk 0:02:32]} 10. Rc1 {[%clk 0:02:45]}  Ne4 {[%clk 0:02:29]} 11. Nh4 {[%clk 0:02:40]}  Nxd2 {[%clk 0:02:26]} 12. Qxd2 {[%clk 0:02:40]}  Be6 {[%clk 0:02:25]} 13. Bd3 {[%clk 0:02:31]}  a4 {[%clk 0:02:16]} 14. f4 {[%clk 0:02:23]}  Nf6 {[%clk 0:02:00]} 15. f5 {[%clk 0:02:20]}  Bd7 {[%clk 0:01:59]} 16. Qf2 {[%clk 0:02:03]}  e6 {[%clk 0:01:31]} 17. fxg6 {[%clk 0:01:53]}  fxg6 {[%clk 0:01:28]} 18. g3 {[%clk 0:01:33]}  axb3 {[%clk 0:01:18]} 19. axb3 {[%clk 0:01:32]}  Ng4 {[%clk 0:01:04]} 20. Qe2 {[%clk 0:01:25]}  Qg5 {[%clk 0:01:02]} 21. Rf4 {[%clk 0:01:23]}  Nf6 {[%clk 0:00:54]} 22. Rcf1 {[%clk 0:01:19]}  Qh6 {[%clk 0:00:36]} 23. R4f2 {[%clk 0:01:01]}  Nh5 {[%clk 0:00:22]} 24. Bc1 {[%clk 0:00:54]}  g5 {[%clk 0:00:17]} 25. Nf3 {[%clk 0:00:48]}  Bf6 {[%clk 0:00:11]} 26. e4 {[%clk 0:00:44]}  Be7 {[%clk 0:00:11]} 27. exd5 {[%clk 0:00:41]}  cxd5 {[%clk 0:00:08]} 28. cxd5 {[%clk 0:00:40]}  Ng7 {[%clk 0:00:05]} 29. dxe6 {[%clk 0:00:31]}  Qxe6 {[%clk 0:00:05]} 30. Bc4 {[%clk 0:00:27]}  Qxc4 {[%clk 0:00:02]} 31. Qxc4+ {[%clk 0:00:26]}  Kh8 {[%clk 0:00:00]} 32. Nxg5 {[%clk 0:00:24]} 1-0


[Site "https://www.chess.com"]